fUSD/lending_fUSD_20251220
["ID","MTS","AMOUNT","RATE_DAILY","PERIOD"]
[399277005,1766230243660,-1000.0,0.00015726,2]
[399277007,1766230243669,-1000.0,0.00015726,2]
[399277008,1766230243678,-1000.0,0.00015726,2]
[399277011,1766230243687,-1000.0,0.00015726,2]
[399277014,1766230243696,-1000.0,0.00015726,2]
[399277016,1766230243705,-1000.0,0.00015726,2]
[399277017,1766230243714,-1000.0,0.00015726,2]
[399277018,1766230243724,-1000.0,0.00015726,2]
[399277019,1766230243736,-686.66093114,0.00015726,2]
[399277020,1766230243745,-209.40437684,0.00015726,2]
[399277021,1766230243756,-200.0,0.00015726,2]
[399277022,1766230243765,-207.4,0.00015726,2]
[399277023,1766230243778,-620.0,0.00015726,2]
[399277024,1766230243791,-215.0738,0.00015726,2]
[399277025,1766230243801,-223.0315306,0.00015726,2]
[399277026,1766230243810,-231.28369723,0.00015726,2]
[399277027,1766230243819,-2486.0,0.00015726,2]
[399277028,1766230243829,-239.84119403,0.00015726,2]
[399277029,1766230243838,-248.71531821,0.00015726,2]
[399277030,1766230243847,-257.91778498,0.00015726,2]
[399277031,1766230243857,-267.46074303,0.00015726,2]
[399277032,1766230243866,-277.35679052,0.00015726,2]
[399277033,1766230243876,-500.0,0.00015726,2]
[399277034,1766230243886,-500.0,0.00015726,2]
[399277035,1766230243895,-500.0,0.00015726,2]
[399277036,1766230243904,-500.0,0.00015726,2]
[399277037,1766230243914,-500.0,0.00015726,2]
[399277038,1766230243923,-500.0,0.00015726,2]
[399277039,1766230243933,-500.0,0.00015726,2]
[399277040,1766230243942,-500.0,0.00015726,2]
[399277041,1766230243952,-500.0,0.00015726,2]
[399277042,1766230243962,-500.0,0.00015726,2]
[399277043,1766230243971,-500.0,0.00015726,2]
[399277044,1766230243981,-570.20028222,0.00015773,2]
[399277045,1766230243990,-333.44713486,0.00015773,2]
[399277046,1766230244000,-500.0,0.00015773,2]
[399277047,1766230244009,-590.13268338,0.00015773,2]
[399277048,1766230244019,-500.37407939,0.00015773,2]
[399277049,1766230244028,-500.0,0.00015773,2]
[399277050,1766230244038,-500.5692733,0.00015773,2]
[399277051,1766230244048,-500.0,0.00015773,2]
[399277052,1766230244057,-500.29716194,0.00015773,2]
[399277053,1766230244067,-500.0,0.00015773,2]
[399277054,1766230244076,-500.5161197,0.00015773,2]
[399277055,1766230244087,-500.4308882,0.00015773,2]
[399277056,1766230244096,-500.0,0.00015773,2]
[399277057,1766230244105,-500.0,0.00015773,2]
[399277058,1766230244114,-500.19600128,0.00015773,2]
[399277059,1766230244124,-555.87900727,0.00015773,2]
[399277060,1766230244134,-500.0,0.00015773,2]
[399277061,1766230244143,-500.0,0.00015773,2]
[399277062,1766230244153,-500.0,0.00015773,2]
[399277063,1766230244162,-500.0,0.00015773,2]
[399277064,1766230244171,-500.30081252,0.00015773,2]
[399277065,1766230244181,-500.0,0.00015773,2]
[399277066,1766230244190,-500.0,0.00015773,2]
[399277067,1766230244199,-500.33069287,0.00015773,2]
[399277068,1766230244209,-518.77690272,0.00015773,2]
[399277069,1766230244218,-500.48687625,0.00015773,2]
[399277070,1766230244228,-177.2862913,0.00015773,2]
[399277071,1766230244238,-160.176,0.00015773,2]
[399277072,1766230244248,-426.51211002,0.00015773,2]
[399277073,1766230244258,-160.176,0.00015773,2]
[399277074,1766230244267,-500.0,0.00015773,2]
[399277075,1766230244277,-160.176,0.00015773,2]
[399277076,1766230244286,-160.176,0.00015773,2]
[399277077,1766230244295,-500.34670783,0.00015773,2]
[399277078,1766230244305,-160.176,0.00015773,2]
[399277079,1766230244314,-160.176,0.00015773,2]
[399277080,1766230244324,-160.176,0.00015773,2]
[399277081,1766230244334,-160.176,0.00015773,2]
[399277082,1766230244343,-150.165,0.00015773,2]
[399277083,1766230244353,-160.176,0.00015773,2]
[399277084,1766230244362,-500.44010865,0.00015773,2]
[399277085,1766230244372,-160.176,0.00015773,2]
[399277086,1766230244381,-500.0,0.00015773,2]
[399277087,1766230244390,-500.0,0.00015773,2]
[399277088,1766230244399,-160.176,0.00015773,2]
[399277089,1766230244409,-500.0,0.00015773,2]
[399277090,1766230244420,-162.35722153,0.00015773,2]
[399277091,1766230244430,-452.09330567,0.00015773,2]
[399277092,1766230244440,-168.09419939,0.00015773,2]
[399277093,1766230244449,-160.176,0.00015773,2]
[399277094,1766230244459,-500.0,0.00015773,2]
[399277095,1766230244468,-160.176,0.00015773,2]
[399277096,1766230244478,-500.21661931,0.00015773,2]
[399277097,1766230244487,-160.176,0.00015773,2]
[399277098,1766230244496,-160.176,0.00015773,2]
[399277099,1766230244505,-500.0,0.00015773,2]
[399277100,1766230244515,-160.176,0.00015773,2]
[399277101,1766230244524,-529.96646376,0.00015773,2]
[399277102,1766230244536,-577.20648211,0.00015773,2]
[399277103,1766230244546,-500.0,0.00015773,2]
[399277104,1766230244558,-500.0,0.00015773,2]
[399277105,1766230244567,-500.0,0.00015773,2]
[399277106,1766230244576,-500.0,0.00015773,2]
[399277107,1766230244585,-162.24077786,0.00015773,2]
[399277108,1766230244596,-500.0,0.00015773,2]
[399277109,1766230244605,-334.5464899,0.00015773,2]
[399277110,1766230244614,-500.59670517,0.00015773,2]
[399277111,1766230244624,-160.176,0.00015773,2]
[399277112,1766230244635,-330.6916765,0.00015773,2]
[399277113,1766230244644,-160.176,0.00015773,2]
[399277114,1766230244653,-160.176,0.00015773,2]
[399277115,1766230244663,-160.176,0.00015773,2]
[399277116,1766230244672,-160.176,0.00015773,2]
[399277117,1766230244681,-160.176,0.00015773,2]
[399277118,1766230244691,-500.0,0.00015773,2]
[399277119,1766230244700,-500.0,0.00015773,2]
[399277120,1766230244710,-168.56959317,0.00015773,2]
[399277121,1766230244720,-500.0,0.00015773,2]
[399277122,1766230244730,-500.0,0.00015773,2]
[399277123,1766230244739,-500.0,0.00015773,2]
[399277124,1766230244748,-543.08632529,0.00015773,2]
[399277125,1766230244757,-370.0959339,0.00015773,2]
[399277126,1766230244768,-9905.5980765,0.00015781,2]
[399277127,1766230244779,-3109.34995974,0.00015797,2]
[399277128,1766230244790,-2855.16426766,0.00015797,2]
[399277129,1766230244800,-2228.79457528,0.00015807,2]
[399277130,1766230244811,-250.0,0.00015831,2]
[399277131,1766230244822,-10272.10520533,0.00015836,2]
[399277132,1766230244831,-500.0,0.00015868,2]
[399277133,1766230244841,-10652.17309792,0.00015891,2]
[399277134,1766230244850,-994.91164638,0.000159,2]
[399277135,1766230244859,-170.00069611,0.00015901,2]
[399277136,1766230244868,-150.34870908,0.00015901,2]
[399277137,1766230244877,-181.47081457,0.00015901,2]
[399277138,1766230244887,-1410.45,0.00015944,2]
[399277139,1766230244897,-11046.30350255,0.00015946,2]
[399277140,1766230244907,-500.0,0.00015964,2]
[399277141,1766230244918,-500.0,0.00015964,9]
[399277142,1766230244928,-775.07178342,0.0001599,2]
[399277143,1766230244937,-251037.70267655,0.00016,2]
[399277144,1766230244947,-151.0,0.00016,2]
[399277145,1766230244956,-151.0,0.00016,2]
[399277146,1766230244965,-151.0,0.00016,2]
[399277147,1766230244975,-151.0,0.00016,2]
[399277148,1766230244984,-153.983022,0.00016,2]
[399277149,1766230244994,-188.1771,0.00016,2]
[399277150,1766230245003,-188.1771,0.00016,2]
[399277151,1766230245013,-188.1771,0.00016,2]
[399277152,1766230245022,-188.1771,0.00016,2]
[399277153,1766230245031,-257.586957,0.00016,2]
[399277154,1766230245041,-257.586957,0.00016,2]
[399277155,1766230245050,-257.586957,0.00016,2]
[399277156,1766230245060,-257.586957,0.00016,2]
[399277157,1766230245069,-151.0,0.00016,2]
[399277158,1766230245079,-151.0,0.00016,2]
[399277159,1766230245090,-151.0,0.00016,2]
[399277160,1766230245102,-2669900.75456006,0.00016,4]
[399277161,1766230245355,-302.69033,0.00016,4]
[399277162,1766230245384,-151.0,0.00014202,2]
[399277163,1766230245393,-5200.68821485,0.00016,4]
[399277164,1766230245405,-1269.9727187,0.00016,4]
[399277165,1766230245421,-30264.37590098,0.00016,4]
[399277166,1766230245431,-151.0,0.00016,2]
[399277167,1766230245440,-151.0,0.00016,2]
[399277168,1766230245449,-151.0,0.00016,2]
[399277169,1766230245459,-151.0,0.00016,2]
[399277170,1766230245468,-151.0,0.00016,2]
[399277171,1766230245477,-151.0,0.00016,2]
[399277172,1766230245486,-151.0,0.00016,2]
[399277173,1766230245496,-151.0,0.00016,2]
[399277174,1766230245505,-151.0,0.00016,2]
[399277175,1766230245515,-151.0,0.00016,2]
[399277176,1766230245524,-1012.88604243,0.00016001,2]
[399277177,1766230245561,-2045.39356299,0.00013891,2]
[399277178,1766230245572,-834.90360017,0.00013891,2]
[399277179,1766230245583,-1218.10437464,0.00013891,2]
[399277180,1766230245596,-899.99,0.00013891,2]
[399277181,1766230245607,-2283.42690933,0.00013891,2]
[399277182,1766230245629,-10541.90228006,0.00013891,2]
[399277183,1766230245727,-531.774,0.00013891,2]
[399277184,1766230246372,-553.29706463,0.00013891,2]
[399277185,1766230246384,-1159.3,0.00013891,2]
[399277186,1766230246427,-1000.0,0.00013891,2]
[399277188,1766231432247,-172.51,0.00011755,2]
[399277189,1766231432259,-10119.23866177,0.00011789,2]
[399277218,1766231438237,-1581.4150026,0.00011789,2]
[399277219,1766231438289,-491.64578281,0.00011789,2]
[399277337,1766231440325,-4823.69043218,0.00011789,2]
[399277338,1766231440537,-720.70480241,0.00011789,2]
[399277341,1766231443316,-3066.8121,0.00011789,2]
[399277342,1766231443328,-1068.475,0.00011789,2]
[399277343,1766231443340,-841.78985,0.00011789,2]
[399277344,1766231443352,-2099.213705,0.00011789,2]
[399277345,1766231443450,-594.27179784,0.00011789,2]
[399277354,1766231446279,-4353.54920445,0.00011789,2]
[399277355,1766231446289,-206.07754928,0.00011789,2]
[399277356,1766231446298,-500.0,0.00011789,2]
[399277357,1766231446307,-1597.72457082,0.0001179,2]
[399277358,1766231446542,-3819.7999,0.0001179,2]
[399277363,1766232407973,5000.0,0.00014,3]
[399277364,1766232473510,5000.0,0.00014,3]
[399277365,1766232541489,5000.0,0.00014,3]
[399277366,1766232613847,5000.0,0.00014,3]
[399277369,1766232632293,-197.3233329,0.00011495,2]
[399277370,1766232632302,-26784.72570519,0.00011495,2]
[399277371,1766232632311,-150.0,0.00011589,2]
[399277372,1766232632320,-580.43097571,0.00011589,2]
[399277373,1766232632330,-502.13274033,0.00011589,2]
[399277374,1766232632339,-500.0,0.00011589,2]
[399277375,1766232632348,-632.24168523,0.00011589,2]
[399277376,1766232632356,-500.0,0.00011589,2]
[399277377,1766232632365,-40785.14278008,0.0001159,2]
[399277378,1766232632377,-1000.0,0.0001159,2]
[399277379,1766232632395,-255.00000005,0.0001159,2]
[399277380,1766232632406,-6998.0,0.0001159,2]
[399277381,1766232632458,-606.75158799,0.0001159,2]
[399277382,1766232632470,-8440.00089196,0.0001159,2]
[399277403,1766232638490,-500.78571235,0.0001159,2]
[399277405,1766232640702,-640.42318988,0.0001159,2]
[399277406,1766232640714,-940773.89583769,0.0001159,2]
[399277407,1766232640725,-300.0,0.00011595,2]
[399277408,1766232640739,-2590.567,0.00011689,2]
[399277409,1766232640749,-171.69,0.00011689,2]
[399277410,1766232640760,-1000.0,0.0001169,2]
[399277411,1766232640770,-28736.2992,0.0001169,2]
[399277412,1766232640780,-217.8076658,0.00011778,2]
[399277413,1766232640791,-500.0,0.00011778,2]
[399277414,1766232640801,-759.5,0.00011783,2]
[399277415,1766232640811,-151.0,0.00011783,2]
[399277416,1766232640822,-151.0,0.00011783,2]
[399277417,1766232640833,-151.0,0.00011783,2]
[399277418,1766232640843,-249.0,0.00011783,2]
[399277419,1766232640855,-151.0,0.00011783,2]
[399277421,1766232640866,-151.0,0.00011783,2]
[399277423,1766232640876,-151.0,0.00011783,2]
[399277424,1766232640886,-151.0,0.00011783,2]
[399277426,1766232640896,-151.0,0.00011783,2]
[399277428,1766232640905,-151.0,0.00011783,2]
[399277429,1766232640915,-151.0,0.00011783,2]
[399277430,1766232640926,-536.41802195,0.00011783,2]
[399277431,1766232640936,-151.0,0.00011783,2]
[399277432,1766232640946,-500.0,0.00011783,2]
[399277433,1766232640956,-500.0,0.00011783,2]
[399277434,1766232640965,-500.0,0.00011783,2]
[399277435,1766232640976,-200.0,0.00011783,2]
[399277436,1766232640986,-500.0,0.00011783,2]
[399277437,1766232640996,-500.0,0.00011783,2]
[399277438,1766232641006,-500.0,0.00011783,2]
[399277439,1766232641016,-500.0,0.00011783,2]
[399277440,1766232641027,-500.0,0.00011783,2]
[399277441,1766232641037,-500.0,0.00011783,2]
[399277442,1766232641047,-500.0,0.00011783,2]
[399277443,1766232641058,-500.0,0.00011783,2]
[399277444,1766232641070,-500.0,0.00011783,2]
[399277445,1766232641080,-500.0,0.00011783,2]
[399277446,1766232641091,-500.0,0.00011783,2]
[399277447,1766232641102,-500.0,0.00011783,2]
[399277448,1766232641113,-500.0,0.00011783,2]
[399277449,1766232641123,-200.0,0.00011783,2]
[399277450,1766232641135,-500.0,0.00011783,2]
[399277451,1766232641145,-500.0,0.00011783,2]
[399277452,1766232641155,-500.0,0.00011783,2]
[399277453,1766232641165,-1000.0,0.00011789,2]
[399277454,1766232641176,-200.0,0.0001179,2]
[399277455,1766232641186,-28983.37288744,0.0001179,2]
[399277456,1766232641196,-850.99341398,0.0001189,2]
[399277457,1766232641206,-2510.24,0.0001189,2]
[399277458,1766232641216,-499.99,0.0001189,2]
[399277459,1766232641226,-9999.99,0.0001189,2]
[399277460,1766232641236,-200.0,0.00011908,2]
[399277461,1766232641247,-1072.74,0.00011922,2]
[399277462,1766232641257,-200.0,0.00012027,2]
[399277463,1766232641267,-759.5,0.00012057,2]
[399277464,1766232641277,-26784.72570515,0.00012096,2]
[399277465,1766232641287,-200.0,0.00012147,2]
[399277466,1766232641297,-455.0,0.00012164,2]
[399277467,1766232641307,-258.35726114,0.00012218,2]
[399277468,1766232641317,-500.0,0.00012229,2]
[399277469,1766232641327,-150.99,0.00012229,2]
[399277470,1766232641337,-999.99,0.00012229,2]
[399277471,1766232641347,-50075.86,0.00012229,2]
[399277472,1766232641357,-150.99,0.00012229,2]
[399277473,1766232641367,-9999.99,0.00012229,2]
[399277474,1766232641377,-200.0,0.00012269,2]
[399277475,1766232641387,-759.5,0.00012331,2]
[399277476,1766232641397,-28983.37288738,0.00012358,2]
[399277477,1766232641408,-161.70238336,0.00012389,2]
[399277478,1766232641418,-500.0,0.00012426,2]
[399277479,1766232641428,-500.0,0.00012426,2]
[399277480,1766232641438,-162.87078705,0.00012426,2]
[399277481,1766232641448,-150.0,0.00012469,2]
[399277482,1766232641459,-1600.0,0.00012469,2]
[399277483,1766232641468,-759.5,0.00012605,2]
[399277484,1766232641480,-850.99341392,0.00012606,2]
[399277485,1766232641490,-300.0,0.0001265,2]
[399277486,1766232641500,-251.83586894,0.0001265,2]
[399277487,1766232641510,-255.0,0.00012655,2]
[399277488,1766232641524,-150.0,0.00012662,2]
[399277489,1766232641535,-26784.72570515,0.00012696,2]
[399277490,1766232641544,-1000.0,0.00012765,2]
[399277491,1766232641555,-166.66,0.00012843,2]
[399277492,1766232641565,-200.0,0.00012874,2]
[399277493,1766232641575,-759.5,0.00012879,2]
[399277494,1766232641585,-28983.37288738,0.00012926,2]
[399277495,1766232641595,-1000.0,0.00012974,2]
[399277496,1766232641604,-1000.0,0.00012974,2]
[399277497,1766232641614,-1852.42,0.00012977,2]
[399277498,1766232641626,-152.52,0.00013057,2]
[399277499,1766232641636,-151.81,0.00013057,2]
[399277500,1766232641646,-151.04,0.00013057,2]
[399277501,1766232641656,-150.1,0.00013057,2]
[399277502,1766232641665,-152.33,0.00013057,2]
[399277503,1766232641675,-152.04,0.00013057,2]
[399277504,1766232641684,-150.05,0.00013057,2]
[399277505,1766232641694,-150.49,0.00013057,2]
[399277506,1766232641703,-759.5,0.00013153,2]
[399277507,1766232641713,-166.66,0.00013267,2]
[399277508,1766232641723,-26784.72570515,0.00013297,2]
[399277509,1766232641734,-850.99341392,0.00013321,2]
[399277510,1766232641744,-199.59,0.00013391,2]
[399277511,1766232641754,-500.0,0.00013397,2]
[399277512,1766232641764,-28983.37288738,0.00013493,2]
[399277513,1766232641774,-1502.00400434,0.00013522,2]
[399277514,1766232641784,-1500.0,0.00013522,2]
[399277515,1766232641795,-166.66,0.00013691,2]
[399277516,1766232641805,-500.0,0.00013698,2]
[399277517,1766232641815,-500.0,0.00013698,2]
[399277518,1766232641824,-500.0,0.00013698,2]
[399277519,1766232641835,-500.0,0.00013698,2]
[399277520,1766232641844,-509.67980687,0.00013698,2]
[399277521,1766232641855,-500.0,0.00013698,2]
[399277522,1766232641865,-500.0,0.00013698,2]
[399277523,1766232641876,-500.0,0.00013698,2]
[399277524,1766232641886,-500.0,0.00013698,2]
[399277525,1766232641896,-500.0,0.00013698,2]
[399277526,1766232641906,-500.0,0.00013698,2]
[399277527,1766232641917,-500.0,0.00013698,2]
[399277528,1766232641928,-500.0,0.00013698,2]
[399277529,1766232641951,-500.0,0.00013698,2]
[399277530,1766232641961,-500.0,0.00013698,2]
[399277531,1766232641972,-500.0,0.00013698,2]
[399277532,1766232641982,-500.0,0.00013698,2]
[399277533,1766232641992,-487.49534907,0.00013698,2]
[399277534,1766232642003,-500.0,0.00013698,2]
[399277535,1766232642013,-500.0,0.00013698,2]
[399277536,1766232642024,-500.0,0.00013698,2]
[399277537,1766232642034,-500.0,0.00013698,2]
[399277538,1766232642044,-500.0,0.00013698,2]
[399277539,1766232642054,-500.0,0.00013698,2]
[399277540,1766232642065,-500.0,0.00013698,2]
[399277541,1766232642074,-500.0,0.00013698,2]
[399277542,1766232642084,-500.0,0.00013698,2]
[399277543,1766232642094,-500.0,0.00013698,2]
[399277544,1766232642104,-500.0,0.00013698,2]
[399277545,1766232642114,-500.0,0.00013698,2]
[399277546,1766232642124,-500.0,0.00013698,2]
[399277547,1766232642134,-500.0,0.00013698,2]
[399277548,1766232642143,-500.0,0.00013698,2]
[399277549,1766232642153,-500.0,0.00013698,2]
[399277550,1766232642163,-500.0,0.00013698,2]
[399277551,1766232642173,-500.0,0.00013698,2]
[399277552,1766232642183,-500.0,0.00013698,2]
[399277553,1766232642193,-500.0,0.00013698,2]
[399277554,1766232642203,-506.44561835,0.00013698,2]
[399277555,1766232642213,-500.0,0.00013698,2]
[399277556,1766232642223,-260.33789622,0.00013698,2]
[399277557,1766232642233,-500.0,0.00013698,2]
[399277558,1766232642244,-500.0,0.00013698,2]
[399277559,1766232642255,-500.0,0.00013698,2]
[399277560,1766232642265,-500.0,0.00013698,2]
[399277561,1766232642276,-500.0,0.00013698,2]
[399277562,1766232642286,-500.0,0.00013698,2]
[399277563,1766232642296,-316.06547294,0.00013698,2]
[399277564,1766232642307,-500.0,0.00013698,2]
[399277565,1766232642319,-500.0,0.00013698,2]
[399277566,1766232642329,-500.0,0.00013698,2]
[399277567,1766232642339,-500.0,0.00013698,2]
[399277568,1766232642348,-491.39149488,0.00013698,2]
[399277569,1766232642358,-500.0,0.00013698,2]
[399277570,1766232642369,-500.0,0.00013698,2]
[399277571,1766232642379,-500.0,0.00013698,2]
[399277572,1766232642390,-707.69,0.00013699,2]
[399277573,1766232642400,-445.92,0.00013699,2]
[399277574,1766232642410,-1000.0,0.00013699,2]
[399277575,1766232642421,-166.66,0.00013699,2]
[399277576,1766232642431,-500.0,0.00013699,2]
[399277577,1766232642441,-500.0,0.00013699,2]
[399277578,1766232642452,-500.0,0.00013699,2]
[399277579,1766232642462,-371.81474559,0.00013699,2]
[399277580,1766232642472,-500.0,0.00013699,2]
[399277581,1766232642482,-500.0,0.00013699,2]
[399277582,1766232642492,-500.0,0.00013699,2]
[399277583,1766232642502,-500.0,0.00013699,2]
[399277584,1766232642512,-420.65228805,0.00013699,2]
[399277585,1766232642525,-166.66,0.00013836,2]
[399277586,1766232642536,-846.45332019,0.0001386,2]
[399277587,1766232642546,-2979.13820818,0.00013891,2]
[399277588,1766232642556,-150.39,0.00013891,2]
[399277589,1766232642567,-26784.72570515,0.00013897,2]
[399277590,1766232642576,-225.40367031,0.0001393,2]
[399277591,1766232642586,-166.66,0.00013973,2]
[399277592,1766232642598,-200.0,0.00014,2]
[399277593,1766232642608,-1600.0,0.00014028,2]
[399277594,1766232642618,-28983.37288738,0.00014061,2]
[399277595,1766232642628,-1501.47727649,0.0001407,2]
[399277596,1766232642638,-166.66,0.0001411,2]
[399277597,1766232642648,-166.66,0.00014115,2]
[399277598,1766232642658,-200.0,0.0001414,2]
[399277599,1766232642668,-166.66,0.00014247,2]
[399277600,1766232642677,-200.0,0.00014281,2]
[399277601,1766232642687,-250.0,0.00014335,2]
[399277602,1766232642697,-1000.0,0.0001436,2]
[399277603,1766232642707,-500.0,0.00014384,2]
[399277604,1766232642716,-166.66,0.00014384,2]
[399277605,1766232642726,-1000.0,0.00014394,2]
[399277606,1766232642736,-200.0,0.00014424,2]
[399277607,1766232642746,-26784.72570515,0.00014498,2]
[399277608,1766232642756,-235.28816838,0.00014522,2]
[399277609,1766232642766,-166.66,0.00014539,2]
[399277610,1766232642776,-200.0,0.00014568,2]
[399277611,1766232642785,-28983.37288738,0.00014629,2]
[399277612,1766232642795,-197.32333287,0.00014734,2]
[399277613,1766232642805,-500.0,0.00014738,2]
[399277614,1766232642814,-3240.0,0.00014761,2]
[399277615,1766232642824,-999.0,0.0001477,3]
[399277616,1766232642834,-65724.24,0.0001477,2]
[399277617,1766232642844,-500.0,0.00014959,2]
[399277618,1766232642854,-166.66,0.00014963,2]
[399277619,1766232642864,-3072.50111435,0.00015,2]
[399277620,1766232642874,-900.0,0.00015068,2]
[399277621,1766232642884,-26784.72570515,0.00015098,2]
[399277622,1766232642894,-28983.37288738,0.00015197,2]
[399277623,1766232642904,-150.0,0.00015288,2]
[399277624,1766232642914,-1600.0,0.00015587,2]
[399277625,1766232642924,-1477.0,0.000156,2]
[399277626,1766232642934,-152.47844731,0.00015682,2]
[399277627,1766232642944,-151.0,0.00015682,2]
[399277628,1766232642954,-9552.16786547,0.00015682,2]
[399277629,1766232642964,-1000.0,0.00015682,2]
[399277630,1766232642974,-500.0,0.00015682,2]
[399277631,1766232642984,-5000.0,0.00015682,2]
[399277632,1766232642993,-500.0,0.00015682,2]
[399277633,1766232643003,-1000.0,0.00015682,2]
[399277634,1766232643013,-500.0,0.00015682,2]
[399277635,1766232643023,-5000.0,0.00015682,2]
[399277636,1766232643033,-500.0,0.00015682,2]
[399277637,1766232643043,-1000.0,0.00015682,2]
[399277638,1766232643053,-574.12855637,0.00015682,2]
[399277639,1766232643063,-500.0,0.00015682,2]
[399277640,1766232643074,-5000.0,0.00015682,2]
[399277641,1766232643084,-500.0,0.00015682,2]
[399277643,1766232643094,-1000.0,0.00015682,2]
[399277645,1766232643104,-500.0,0.00015682,2]
[399277649,1766232643532,-5000.0,0.00015682,2]
[399277650,1766232643549,-500.0,0.00015682,2]
[399277651,1766232643565,-1000.0,0.00015682,2]
[399277652,1766232643573,-500.0,0.00015682,2]
[399277653,1766232643583,-1722.43969839,0.00015682,2]
[399277654,1766232643592,-531.95847037,0.00015682,2]
[399277655,1766232643602,-1000.0,0.00015682,2]
[399277656,1766232643611,-500.0,0.00015682,2]
[399277657,1766232643620,-1000.0,0.00015682,2]
[399277658,1766232643629,-1000.0,0.00015682,2]
[399277659,1766232643638,-500.0,0.00015682,2]
[399277660,1766232643647,-500.0,0.00015682,2]
[399277661,1766232643656,-267.97401367,0.00015682,2]
[399277662,1766232643665,-500.0,0.00015682,2]
[399277663,1766232643674,-500.0,0.00015682,2]
[399277664,1766232643683,-500.0,0.00015682,2]
[399277665,1766232643692,-620.0,0.00015682,2]
[399277666,1766232643701,-1000.0,0.00015682,2]
[399277667,1766232643710,-209.40437685,0.00015682,2]
[399277668,1766232643719,-1000.0,0.00015682,2]
[399277669,1766232643728,-1000.0,0.00015682,2]
[399277670,1766232643737,-1000.0,0.00015682,2]
[399277671,1766232643746,-1000.0,0.00015682,2]
[399277672,1766232643754,-1000.0,0.00015682,2]
[399277673,1766232643763,-1000.0,0.00015682,2]
[399277674,1766232643772,-1000.0,0.00015682,2]
[399277675,1766232643781,-1785.47061055,0.00015682,2]
[399277676,1766232643789,-970.77463272,0.00015682,2]
[399277677,1766232643799,-500.0,0.00015682,2]
[399277678,1766232643807,-500.0,0.00015682,2]
[399277679,1766232643816,-500.0,0.00015682,2]
[399277680,1766232643825,-500.0,0.00015682,2]
[399277681,1766232643834,-500.0,0.00015682,2]
[399277682,1766232643843,-500.0,0.00015682,2]
[399277683,1766232643852,-500.0,0.00015682,2]
[399277684,1766232643861,-407.21754602,0.00015682,2]
[399277685,1766232643870,-300.0,0.00015682,2]
[399277686,1766232643879,-153.78508436,0.00015682,2]
[399277687,1766232643887,-200.0,0.00015682,2]
[399277688,1766232643896,-207.4,0.00015682,2]
[399277689,1766232643905,-215.0738,0.00015682,2]
[399277690,1766232643914,-223.0315306,0.00015682,2]
[399277691,1766232643923,-231.28369723,0.00015682,2]
[399277692,1766232643934,-239.84119403,0.00015682,2]
[399277693,1766232643944,-248.71531821,0.00015682,2]
[399277694,1766232643953,-257.91778498,0.00015682,2]
[399277696,1766232643962,-267.46074303,0.00015682,2]
[399277698,1766232643971,-277.35679052,0.00015682,2]
[399277699,1766232643980,-26784.72570515,0.00015699,2]
[399277700,1766232643990,-9905.5980765,0.00015737,2]
[399277701,1766232643998,-28983.37288738,0.00015764,2]
[399277702,1766232644007,-500.0,0.00015773,2]
[399277703,1766232644017,-500.0,0.00015773,2]
[399277704,1766232644027,-10272.10520533,0.00015792,2]